[Event "Titled Tuesday Blitz May 2 Late 2023"]
[White "Roux, Baptiste"]
[Black "Schmakel, Sam"]
[WhiteFideId "36017450"]
[BlackFideId "2039311"]
[WhiteElo "2077"]
[BlackElo "2356"]
[Result "0-1"]
[Round "02"]
[TimeControl "180+2"]
[Date "2023.05.02"]
[WhiteClock "0:00:01"]
[BlackClock "0:00:05"]

1. d4 {[%clk 0:02:57]}  d5 {[%clk 0:02:59]} 2. Nf3 {[%clk 0:02:54]}  e6 {[%clk 0:02:56]} 3. g3 {[%clk 0:02:52]}  b6 {[%clk 0:02:56]} 4. Bg2 {[%clk 0:02:52]}  Bb7 {[%clk 0:02:56]} 5. O-O {[%clk 0:02:52]}  Nd7 {[%clk 0:02:57]} 6. Nbd2 {[%clk 0:02:38]}  c5 {[%clk 0:02:52]} 7. e3 {[%clk 0:02:37]}  Rc8 {[%clk 0:02:40]} 8. b3 {[%clk 0:02:24]}  cxd4 {[%clk 0:02:16]} 9. exd4 {[%clk 0:02:20]}  Ngf6 {[%clk 0:02:14]} 10. Bb2 {[%clk 0:02:19]}  b5 {[%clk 0:02:08]} 11. Re1 {[%clk 0:02:12]}  Bb4 {[%clk 0:01:54]} 12. Re3 {[%clk 0:01:50]}  O-O {[%clk 0:01:50]} 13. a3 {[%clk 0:01:47]}  Be7 {[%clk 0:01:27]} 14. h3 {[%clk 0:01:44]}  Qc7 {[%clk 0:01:24]} 15. Rc1 {[%clk 0:01:35]}  Qa5 {[%clk 0:01:24]} 16. b4 {[%clk 0:01:16]}  Qd8 {[%clk 0:01:24]} 17. Ne5 {[%clk 0:01:14]}  Nxe5 {[%clk 0:01:20]} 18. dxe5 {[%clk 0:01:15]}  Nd7 {[%clk 0:01:20]} 19. Bd4 {[%clk 0:01:12]}  a5 {[%clk 0:01:06]} 20. c3 {[%clk 0:01:04]}  Nb6 {[%clk 0:01:06]} 21. Bf1 {[%clk 0:00:56]}  Bc6 {[%clk 0:00:55]} 22. f4 {[%clk 0:00:52]}  Na4 {[%clk 0:00:35]} 23. Bd3 {[%clk 0:00:33]}  Bd7 {[%clk 0:00:30]} 24. Bb1 {[%clk 0:00:19]}  f5 {[%clk 0:00:19]} 25. exf6 {[%clk 0:00:19]}  Bxf6 {[%clk 0:00:19]} 26. Nf3 {[%clk 0:00:18]}  axb4 {[%clk 0:00:17]} 27. axb4 {[%clk 0:00:18]}  Qe7 {[%clk 0:00:12]} 28. Ne5 {[%clk 0:00:17]}  Be8 {[%clk 0:00:12]} 29. Qd3 {[%clk 0:00:16]}  g6 {[%clk 0:00:12]} 30. g4 {[%clk 0:00:15]}  Bg7 {[%clk 0:00:11]} 31. Kg2 {[%clk 0:00:15]}  Rxf4 {[%clk 0:00:11]} 32. Rf1 {[%clk 0:00:13]}  Rxf1 {[%clk 0:00:10]} 33. Kxf1 {[%clk 0:00:14]}  Nb2 {[%clk 0:00:08]} 34. Qe2 {[%clk 0:00:12]}  Na4 {[%clk 0:00:06]} 35. Kg2 {[%clk 0:00:11]}  Rc7 {[%clk 0:00:02]} 36. Bc2 {[%clk 0:00:07]}  Qg5 {[%clk 0:00:02]} 37. Bxa4 {[%clk 0:00:07]}  bxa4 {[%clk 0:00:03]} 38. Nf3 {[%clk 0:00:06]}  Qf4 {[%clk 0:00:03]} 39. Bxg7 {[%clk 0:00:06]}  Rxg7 {[%clk 0:00:03]} 40. Rxe6 {[%clk 0:00:07]}  Bd7 {[%clk 0:00:03]} 41. Re7 {[%clk 0:00:07]}  Rf7 {[%clk 0:00:03]} 42. Rxf7 {[%clk 0:00:07]}  Qxf7 {[%clk 0:00:04]} 43. Qe5 {[%clk 0:00:08]}  a3 {[%clk 0:00:04]} 44. Qe2 {[%clk 0:00:06]}  Bc6 {[%clk 0:00:04]} 45. Nd4 {[%clk 0:00:05]}  Bb7 {[%clk 0:00:03]} 46. Qa2 {[%clk 0:00:06]}  Qe7 {[%clk 0:00:03]} 47. Qxa3 {[%clk 0:00:06]}  Qe4+ {[%clk 0:00:04]} 48. Kg3 {[%clk 0:00:07]}  Qe3+ {[%clk 0:00:04]} 49. Kg2 {[%clk 0:00:03]}  Qd2+ {[%clk 0:00:04]} 50. Kf3 {[%clk 0:00:01]}  Qd3+ {[%clk 0:00:05]} 51. Kf2 {[%clk 0:00:01]}  Qd2+ {[%clk 0:00:05]} 0-1


[Site "https://www.chess.com"]

[Event "Titled Tuesday Blitz May 2 Late 2023"]
[White "Prohaszka, Peter"]
[Black "Arnold, Ken"]
[WhiteFideId "726265"]
[BlackFideId "2056836"]
[WhiteElo "2626"]
[BlackElo "2355"]
[Result "1-0"]
[Round "02"]
[TimeControl "180+2"]
[Date "2023.05.02"]
[WhiteClock "0:00:30"]
[BlackClock "0:00:31"]

1. d4 {[%clk 0:03:00]}  Nf6 {[%clk 0:02:58]} 2. Nf3 {[%clk 0:03:01]}  e6 {[%clk 0:02:59]} 3. Bf4 {[%clk 0:03:00]}  d5 {[%clk 0:02:58]} 4. e3 {[%clk 0:03:00]}  Bd6 {[%clk 0:02:58]} 5. Nbd2 {[%clk 0:02:59]}  O-O {[%clk 0:02:57]} 6. c3 {[%clk 0:02:56]}  b6 {[%clk 0:02:55]} 7. Bg3 {[%clk 0:02:55]}  Bb7 {[%clk 0:02:54]} 8. Bd3 {[%clk 0:02:56]}  Nc6 {[%clk 0:02:53]} 9. Ne5 {[%clk 0:02:54]}  Ne7 {[%clk 0:02:50]} 10. Bh4 {[%clk 0:02:46]}  Ng6 {[%clk 0:02:48]} 11. Nxg6 {[%clk 0:02:36]}  fxg6 {[%clk 0:02:45]} 12. f4 {[%clk 0:02:35]}  c5 {[%clk 0:02:36]} 13. O-O {[%clk 0:02:34]}  Qc7 {[%clk 0:02:30]} 14. Qf3 {[%clk 0:02:32]}  a6 {[%clk 0:02:23]} 15. a4 {[%clk 0:02:32]}  Rae8 {[%clk 0:02:22]} 16. Kh1 {[%clk 0:02:18]}  Qd7 {[%clk 0:02:14]} 17. Qh3 {[%clk 0:02:16]}  Bc6 {[%clk 0:02:02]} 18. Nf3 {[%clk 0:02:14]}  Bxa4 {[%clk 0:01:46]} 19. Ng5 {[%clk 0:01:33]}  Bb5 {[%clk 0:01:39]} 20. Bxb5 {[%clk 0:01:21]}  axb5 {[%clk 0:01:10]} 21. Ra6 {[%clk 0:01:21]}  h6 {[%clk 0:01:04]} 22. Nf3 {[%clk 0:01:17]}  Qb7 {[%clk 0:00:54]} 23. Rfa1 {[%clk 0:01:16]}  Ra8 {[%clk 0:00:53]} 24. Qxe6+ {[%clk 0:01:15]}  Kh7 {[%clk 0:00:52]} 25. Rxa8 {[%clk 0:01:10]}  Rxa8 {[%clk 0:00:51]} 26. Rxa8 {[%clk 0:01:06]}  Qxa8 {[%clk 0:00:49]} 27. Qxd6 {[%clk 0:00:44]}  Qa1+ {[%clk 0:00:42]} 28. Ng1 {[%clk 0:00:44]}  Ne4 {[%clk 0:00:38]} 29. Qxd5 {[%clk 0:00:44]}  Nd2 {[%clk 0:00:36]} 30. dxc5 {[%clk 0:00:31]}  bxc5 {[%clk 0:00:31]} 31. Qxd2 {[%clk 0:00:30]} 1-0


[Site "https://www.chess.com"]

[Event "Titled Tuesday Blitz May 2 Late 2023"]
[White "Iliaguev, Nisim"]
[Black "Jarocka, Liwia"]
[WhiteFideId "2817276"]
[BlackFideId "21807558"]
[WhiteElo "2241"]
[BlackElo "2013"]
[Result "1-0"]
[Round "02"]
[TimeControl "180+2"]
[Date "2023.05.02"]
[WhiteClock "0:00:42"]
[BlackClock "0:00:14"]

1. d4 {[%clk 0:03:00]}  d5 {[%clk 0:02:58]} 2. Nf3 {[%clk 0:03:01]}  Nf6 {[%clk 0:02:58]} 3. g3 {[%clk 0:03:01]}  e6 {[%clk 0:02:58]} 4. Bg2 {[%clk 0:03:02]}  c5 {[%clk 0:02:58]} 5. O-O {[%clk 0:03:02]}  cxd4 {[%clk 0:02:58]} 6. Nxd4 {[%clk 0:03:02]}  Be7 {[%clk 0:02:57]} 7. c4 {[%clk 0:03:03]}  O-O {[%clk 0:02:55]} 8. Nc3 {[%clk 0:03:03]}  Nc6 {[%clk 0:02:52]} 9. cxd5 {[%clk 0:03:02]}  exd5 {[%clk 0:02:51]} 10. b3 {[%clk 0:03:02]}  Re8 {[%clk 0:02:49]} 11. Bb2 {[%clk 0:03:02]}  Bg4 {[%clk 0:02:44]} 12. h3 {[%clk 0:02:59]}  Be6 {[%clk 0:02:41]} 13. Rc1 {[%clk 0:02:58]}  Rc8 {[%clk 0:02:40]} 14. Nxe6 {[%clk 0:02:54]}  fxe6 {[%clk 0:02:39]} 15. h4 {[%clk 0:02:52]}  Kh8 {[%clk 0:02:36]} 16. e3 {[%clk 0:02:47]}  Bf8 {[%clk 0:01:59]} 17. Qd2 {[%clk 0:02:42]}  Rc7 {[%clk 0:01:59]} 18. Rfd1 {[%clk 0:02:41]}  Rd7 {[%clk 0:01:58]} 19. Ne2 {[%clk 0:02:39]}  e5 {[%clk 0:01:50]} 20. a3 {[%clk 0:02:38]}  a5 {[%clk 0:01:46]} 21. Qc2 {[%clk 0:02:26]}  Qe7 {[%clk 0:01:36]} 22. Qf5 {[%clk 0:02:08]}  g6 {[%clk 0:01:27]} 23. Qc2 {[%clk 0:02:06]}  Bg7 {[%clk 0:01:27]} 24. Nc3 {[%clk 0:01:48]}  Red8 {[%clk 0:01:24]} 25. Nb5 {[%clk 0:01:47]}  Qf7 {[%clk 0:01:17]} 26. Bh3 {[%clk 0:01:38]}  Re7 {[%clk 0:01:14]} 27. Qe2 {[%clk 0:01:21]}  Rf8 {[%clk 0:01:07]} 28. Bg2 {[%clk 0:01:19]}  Rd8 {[%clk 0:01:05]} 29. a4 {[%clk 0:01:19]}  Ree8 {[%clk 0:00:55]} 30. Ba3 {[%clk 0:01:17]}  h5 {[%clk 0:00:49]} 31. Nd6 {[%clk 0:01:13]}  Rxd6 {[%clk 0:00:46]} 32. Bxd6 {[%clk 0:01:14]}  d4 {[%clk 0:00:32]} 33. Qc4 {[%clk 0:01:02]}  Qd7 {[%clk 0:00:27]} 34. Bc5 {[%clk 0:01:02]}  Qf5 {[%clk 0:00:24]} 35. exd4 {[%clk 0:00:56]}  Ng4 {[%clk 0:00:24]} 36. Qe2 {[%clk 0:00:53]}  Rf8 {[%clk 0:00:18]} 37. d5 {[%clk 0:00:52]}  Nd4 {[%clk 0:00:15]} 38. Bxd4 {[%clk 0:00:52]}  exd4 {[%clk 0:00:16]} 39. Be4 {[%clk 0:00:50]}  Qxf2+ {[%clk 0:00:14]} 40. Qxf2 {[%clk 0:00:50]}  Rxf2 {[%clk 0:00:15]} 41. d6 {[%clk 0:00:48]}  Bf6 {[%clk 0:00:14]} 42. d7 {[%clk 0:00:45]}  Rb2 {[%clk 0:00:13]} 43. Rc8+ {[%clk 0:00:44]}  Kg7 {[%clk 0:00:13]} 44. d8=Q {[%clk 0:00:44]}  Bxd8 {[%clk 0:00:13]} 45. Rxd8 {[%clk 0:00:45]}  Ne3 {[%clk 0:00:14]} 46. R8xd4 {[%clk 0:00:43]}  Nxd1 {[%clk 0:00:13]} 47. Rxd1 {[%clk 0:00:44]}  Rxb3 {[%clk 0:00:14]} 48. Bd3 {[%clk 0:00:42]}  Rb4 {[%clk 0:00:14]} 49. Bb5 {[%clk 0:00:43]}  Rb3 {[%clk 0:00:14]} 50. Kg2 {[%clk 0:00:43]}  Rb2+ {[%clk 0:00:15]} 51. Kh3 {[%clk 0:00:43]}  b6 {[%clk 0:00:15]} 52. Rd7+ {[%clk 0:00:44]}  Kh6 {[%clk 0:00:16]} 53. Rd6 {[%clk 0:00:44]}  Rb4 {[%clk 0:00:15]} 54. Rxb6 {[%clk 0:00:42]}  Kg7 {[%clk 0:00:13]} 55. Ra6 {[%clk 0:00:42]}  g5 {[%clk 0:00:14]} 56. hxg5 {[%clk 0:00:42]} 1-0


[Site "https://www.chess.com"]

[Event "Titled Tuesday Blitz May 2 Late 2023"]
[White "Gertler, David"]
[Black "Jaracz, Pawel"]
[WhiteFideId "2017377"]
[BlackFideId "1102222"]
[WhiteElo "2218"]
[BlackElo "2438"]
[Result "0-1"]
[Round "02"]
[TimeControl "180+2"]
[Date "2023.05.02"]
[WhiteClock "0:00:57"]
[BlackClock "0:01:20"]

1. e4 {[%clk 0:03:00]}  e5 {[%clk 0:02:59]} 2. Nf3 {[%clk 0:03:00]}  Nc6 {[%clk 0:02:59]} 3. Bb5 {[%clk 0:03:01]}  Nf6 {[%clk 0:02:59]} 4. d4 {[%clk 0:03:00]}  exd4 {[%clk 0:02:56]} 5. O-O {[%clk 0:03:00]}  d6 {[%clk 0:02:50]} 6. Nxd4 {[%clk 0:03:00]}  Bd7 {[%clk 0:02:50]} 7. Bxc6 {[%clk 0:03:01]}  bxc6 {[%clk 0:02:50]} 8. Qf3 {[%clk 0:03:00]}  Ng4 {[%clk 0:02:40]} 9. h3 {[%clk 0:02:39]}  Ne5 {[%clk 0:02:39]} 10. Qg3 {[%clk 0:02:40]}  c5 {[%clk 0:02:35]} 11. Ne2 {[%clk 0:02:38]}  Ng6 {[%clk 0:02:24]} 12. Nbc3 {[%clk 0:02:31]}  Qh4 {[%clk 0:02:18]} 13. Qxh4 {[%clk 0:02:21]}  Nxh4 {[%clk 0:02:17]} 14. Nd5 {[%clk 0:02:12]}  Rc8 {[%clk 0:02:16]} 15. f4 {[%clk 0:02:08]}  f5 {[%clk 0:02:02]} 16. g3 {[%clk 0:01:57]}  Ng6 {[%clk 0:02:01]} 17. Nec3 {[%clk 0:01:50]}  c6 {[%clk 0:01:53]} 18. Ne3 {[%clk 0:01:43]}  fxe4 {[%clk 0:01:52]} 19. f5 {[%clk 0:01:39]}  Ne5 {[%clk 0:01:51]} 20. Nxe4 {[%clk 0:01:35]}  d5 {[%clk 0:01:51]} 21. Ng5 {[%clk 0:01:29]}  c4 {[%clk 0:01:47]} 22. Ng4 {[%clk 0:01:21]}  Bc5+ {[%clk 0:01:44]} 23. Kg2 {[%clk 0:01:19]}  Nxg4 {[%clk 0:01:31]} 24. hxg4 {[%clk 0:01:20]}  O-O {[%clk 0:01:31]} 25. Rh1 {[%clk 0:00:57]}  Rce8 {[%clk 0:01:20]} 0-1


[Site "https://www.chess.com"]

[Event "Titled Tuesday Blitz May 2 Late 2023"]
[White "Skvortsov, Andrei"]
[Black "Ardila, Oscar Humberto"]
[WhiteFideId "24108600"]
[BlackFideId "4404742"]
[WhiteElo "2259"]
[BlackElo "1918"]
[Result "1-0"]
[Round "02"]
[TimeControl "180+2"]
[Date "2023.05.02"]
[WhiteClock "0:00:38"]
[BlackClock "0:00:14"]

1. e4 {[%clk 0:03:00]}  e5 {[%clk 0:02:59]} 2. d4 {[%clk 0:02:59]}  exd4 {[%clk 0:02:59]} 3. Qxd4 {[%clk 0:03:00]}  Nc6 {[%clk 0:02:58]} 4. Qd3 {[%clk 0:03:00]}  Qe7 {[%clk 0:02:55]} 5. Nc3 {[%clk 0:02:55]}  Nb4 {[%clk 0:02:48]} 6. Qe2 {[%clk 0:02:54]}  c6 {[%clk 0:02:24]} 7. a3 {[%clk 0:02:44]}  Na6 {[%clk 0:02:24]} 8. Bf4 {[%clk 0:02:42]}  Qf6 {[%clk 0:02:18]} 9. Nh3 {[%clk 0:02:38]}  Ne7 {[%clk 0:02:14]} 10. Bg5 {[%clk 0:02:16]}  Qg6 {[%clk 0:02:09]} 11. Be3 {[%clk 0:02:03]}  d6 {[%clk 0:01:54]} 12. Nf4 {[%clk 0:02:00]}  Qg4 {[%clk 0:01:54]} 13. f3 {[%clk 0:01:53]}  Qh4+ {[%clk 0:01:53]} 14. g3 {[%clk 0:01:52]}  Qf6 {[%clk 0:01:51]} 15. O-O-O {[%clk 0:01:50]}  Ng6 {[%clk 0:01:44]} 16. Nxg6 {[%clk 0:01:43]}  Qxg6 {[%clk 0:01:41]} 17. Bf4 {[%clk 0:01:41]}  Be7 {[%clk 0:01:35]} 18. Qd2 {[%clk 0:01:41]}  O-O {[%clk 0:01:31]} 19. h4 {[%clk 0:01:41]}  h5 {[%clk 0:01:16]} 20. Bd3 {[%clk 0:01:36]}  Nc5 {[%clk 0:01:15]} 21. Bc4 {[%clk 0:01:29]}  b5 {[%clk 0:01:13]} 22. Ba2 {[%clk 0:01:29]}  Rd8 {[%clk 0:01:10]} 23. Bg5 {[%clk 0:01:25]}  Bxg5 {[%clk 0:00:46]} 24. hxg5 {[%clk 0:01:18]}  a5 {[%clk 0:00:43]} 25. f4 {[%clk 0:01:16]}  Bg4 {[%clk 0:00:40]} 26. f5 {[%clk 0:01:14]}  Qh7 {[%clk 0:00:40]} 27. Bxf7+ {[%clk 0:01:06]}  Kh8 {[%clk 0:00:37]} 28. Qf4 {[%clk 0:00:46]}  b4 {[%clk 0:00:20]} 29. Qxg4 {[%clk 0:00:42]}  g6 {[%clk 0:00:14]} 30. fxg6 {[%clk 0:00:38]} 1-0


[Site "https://www.chess.com"]

[Event "Titled Tuesday Blitz May 2 Late 2023"]
[White "Rosen, Eric"]
[Black "Panico, Nick"]
[WhiteFideId "2032562"]
[BlackFideId "2026724"]
[WhiteElo "2331"]
[BlackElo "1982"]
[Result "1-0"]
[Round "02"]
[TimeControl "180+2"]
[Date "2023.05.02"]
[WhiteClock "0:00:26"]
[BlackClock "0:00:10"]

1. d4 {[%clk 0:03:00]}  f5 {[%clk 0:02:59]} 2. Bf4 {[%clk 0:02:59]}  Nf6 {[%clk 0:03:00]} 3. e3 {[%clk 0:02:59]}  e6 {[%clk 0:03:00]} 4. Nf3 {[%clk 0:02:58]}  Be7 {[%clk 0:03:01]} 5. h3 {[%clk 0:02:56]}  O-O {[%clk 0:03:00]} 6. c4 {[%clk 0:02:57]}  b6 {[%clk 0:03:01]} 7. Nc3 {[%clk 0:02:54]}  Bb7 {[%clk 0:03:01]} 8. Bd3 {[%clk 0:02:52]}  Na6 {[%clk 0:03:01]} 9. a3 {[%clk 0:02:52]}  c5 {[%clk 0:03:02]} 10. d5 {[%clk 0:02:43]}  exd5 {[%clk 0:02:59]} 11. cxd5 {[%clk 0:02:43]}  d6 {[%clk 0:03:00]} 12. Bxf5 {[%clk 0:02:39]}  Nxd5 {[%clk 0:02:54]} 13. Be6+ {[%clk 0:02:36]}  Kh8 {[%clk 0:02:54]} 14. Nxd5 {[%clk 0:02:33]}  c4 {[%clk 0:01:48]} 15. Nxe7 {[%clk 0:01:52]}  Qxe7 {[%clk 0:01:04]} 16. Bd5 {[%clk 0:01:16]}  Bxd5 {[%clk 0:01:02]} 17. Qxd5 {[%clk 0:01:14]}  Rac8 {[%clk 0:01:01]} 18. Qxd6 {[%clk 0:01:11]}  Qe4 {[%clk 0:00:59]} 19. O-O {[%clk 0:00:59]}  Nc5 {[%clk 0:00:57]} 20. Qe5 {[%clk 0:00:51]}  Qc2 {[%clk 0:00:54]} 21. Qc3 {[%clk 0:00:49]}  Qf5 {[%clk 0:00:54]} 22. Rad1 {[%clk 0:00:48]}  Ne4 {[%clk 0:00:54]} 23. Qe5 {[%clk 0:00:48]}  Qg6 {[%clk 0:00:53]} 24. Nh4 {[%clk 0:00:41]}  Qc6 {[%clk 0:00:53]} 25. Nf5 {[%clk 0:00:38]}  Nf6 {[%clk 0:00:49]} 26. Ne7 {[%clk 0:00:34]}  Qe8 {[%clk 0:00:42]} 27. Nxc8 {[%clk 0:00:35]}  Qxc8 {[%clk 0:00:43]} 28. Rd4 {[%clk 0:00:31]}  c3 {[%clk 0:00:42]} 29. bxc3 {[%clk 0:00:31]}  Qxc3 {[%clk 0:00:43]} 30. Rd8 {[%clk 0:00:25]}  Qxe5 {[%clk 0:00:43]} 31. Rxf8+ {[%clk 0:00:24]}  Ng8 {[%clk 0:00:43]} 32. Bxe5 {[%clk 0:00:25]}  h6 {[%clk 0:00:43]} 33. Rd1 {[%clk 0:00:25]}  Kh7 {[%clk 0:00:44]} 34. Rd7 {[%clk 0:00:26]}  h5 {[%clk 0:00:21]} 35. Rxg7+ {[%clk 0:00:25]}  Kh6 {[%clk 0:00:10]} 36. Rfxg8 {[%clk 0:00:26]} 1-0


[Site "https://www.chess.com"]

[Event "Titled Tuesday Blitz May 2 Late 2023"]
[White "Baskin, Robert"]
[Black "Steenbekkers, Franck"]
[WhiteFideId "24662402"]
[BlackFideId "1004220"]
[WhiteElo "2472"]
[BlackElo "2164"]
[Result "1-0"]
[Round "02"]
[TimeControl "180+2"]
[Date "2023.05.02"]
[WhiteClock "0:00:04"]
[BlackClock "0:00:06"]

1. e4 {[%clk 0:02:56]}  c5 {[%clk 0:02:59]} 2. Nf3 {[%clk 0:02:55]}  Nc6 {[%clk 0:02:59]} 3. Nc3 {[%clk 0:02:52]}  Nf6 {[%clk 0:02:58]} 4. Bb5 {[%clk 0:02:50]}  Nd4 {[%clk 0:02:51]} 5. O-O {[%clk 0:02:50]}  e6 {[%clk 0:02:49]} 6. Re1 {[%clk 0:02:48]}  a6 {[%clk 0:02:48]} 7. Bf1 {[%clk 0:02:46]}  Qc7 {[%clk 0:02:46]} 8. e5 {[%clk 0:02:33]}  Nd5 {[%clk 0:02:42]} 9. Nxd5 {[%clk 0:02:29]}  exd5 {[%clk 0:02:41]} 10. Nxd4 {[%clk 0:02:29]}  cxd4 {[%clk 0:02:41]} 11. Bd3 {[%clk 0:02:25]}  Be7 {[%clk 0:02:40]} 12. Qg4 {[%clk 0:02:23]}  O-O {[%clk 0:02:35]} 13. Qxd4 {[%clk 0:02:23]}  b5 {[%clk 0:02:29]} 14. b3 {[%clk 0:02:21]}  Bc5 {[%clk 0:02:25]} 15. Qh4 {[%clk 0:02:17]}  g6 {[%clk 0:02:23]} 16. Bb2 {[%clk 0:02:17]}  Bb7 {[%clk 0:02:21]} 17. b4 {[%clk 0:02:03]}  Bb6 {[%clk 0:02:18]} 18. Qf6 {[%clk 0:02:02]}  d4 {[%clk 0:02:17]} 19. h4 {[%clk 0:01:59]}  Rfe8 {[%clk 0:02:13]} 20. h5 {[%clk 0:01:58]}  Re6 {[%clk 0:02:13]} 21. Qg5 {[%clk 0:01:57]}  Rae8 {[%clk 0:02:08]} 22. f4 {[%clk 0:01:41]}  d6 {[%clk 0:01:46]} 23. f5 {[%clk 0:00:49]}  Rxe5 {[%clk 0:01:42]} 24. Rxe5 {[%clk 0:00:48]}  Rxe5 {[%clk 0:01:42]} 25. Rf1 {[%clk 0:00:46]}  Be4 {[%clk 0:01:25]} 26. h6 {[%clk 0:00:41]}  Bxd3 {[%clk 0:01:16]} 27. Qf6 {[%clk 0:00:39]}  Kf8 {[%clk 0:01:11]} 28. Qg7+ {[%clk 0:00:35]}  Ke8 {[%clk 0:01:10]} 29. Qg8+ {[%clk 0:00:30]}  Kd7 {[%clk 0:01:05]} 30. cxd3 {[%clk 0:00:26]}  Qd8 {[%clk 0:00:51]} 31. Qxf7+ {[%clk 0:00:26]}  Qe7 {[%clk 0:00:48]} 32. fxg6 {[%clk 0:00:23]}  hxg6 {[%clk 0:00:47]} 33. h7 {[%clk 0:00:24]}  Rh5 {[%clk 0:00:43]} 34. Qxg6 {[%clk 0:00:12]}  Rxh7 {[%clk 0:00:40]} 35. Rc1 {[%clk 0:00:10]}  Rg7 {[%clk 0:00:34]} 36. Qf5+ {[%clk 0:00:10]}  Qe6 {[%clk 0:00:33]} 37. Qf3 {[%clk 0:00:10]}  d5 {[%clk 0:00:22]} 38. Qf8 {[%clk 0:00:07]}  Qg4 {[%clk 0:00:14]} 39. Qc8+ {[%clk 0:00:07]}  Kd6 {[%clk 0:00:10]} 40. Rc6+ {[%clk 0:00:05]}  Ke5 {[%clk 0:00:09]} 41. Qe8+ {[%clk 0:00:05]}  Kf4 {[%clk 0:00:06]} 42. Rf6+ {[%clk 0:00:05]}  Kg3 {[%clk 0:00:06]} 43. Qe1# {[%clk 0:00:04]} 1-0


[Site "https://www.chess.com"]

[Event "Titled Tuesday Blitz May 2 Late 2023"]
[White "Maiti, Milind"]
[Black "Muradli, Mahammad"]
[WhiteFideId "2090767"]
[BlackFideId "13409301"]
[WhiteElo "2150"]
[BlackElo "2558"]
[Result "1-0"]
[Round "02"]
[TimeControl "180+2"]
[Date "2023.05.02"]
[WhiteClock "0:00:14"]
[BlackClock "0:00:01"]

1. d4 {[%clk 0:03:00]}  Nf6 {[%clk 0:02:59]} 2. c4 {[%clk 0:02:58]}  c5 {[%clk 0:02:58]} 3. d5 {[%clk 0:02:57]}  b5 {[%clk 0:02:59]} 4. cxb5 {[%clk 0:02:57]}  a6 {[%clk 0:02:58]} 5. bxa6 {[%clk 0:02:58]}  g6 {[%clk 0:02:57]} 6. Nc3 {[%clk 0:02:58]}  Bg7 {[%clk 0:02:57]} 7. a7 {[%clk 0:02:58]}  Rxa7 {[%clk 0:02:52]} 8. e4 {[%clk 0:02:57]}  d6 {[%clk 0:02:43]} 9. Nf3 {[%clk 0:02:57]}  O-O {[%clk 0:02:43]} 10. Be2 {[%clk 0:02:53]}  Na6 {[%clk 0:02:22]} 11. O-O {[%clk 0:02:45]}  Nd7 {[%clk 0:02:17]} 12. Nb5 {[%clk 0:02:41]}  Ra8 {[%clk 0:02:13]} 13. a4 {[%clk 0:02:31]}  Nc7 {[%clk 0:02:09]} 14. Ra3 {[%clk 0:02:22]}  Ba6 {[%clk 0:02:06]} 15. Nd2 {[%clk 0:02:05]}  Qb8 {[%clk 0:01:47]} 16. Rb3 {[%clk 0:01:36]}  Nb6 {[%clk 0:01:17]} 17. Nc4 {[%clk 0:00:47]}  Bxb5 {[%clk 0:00:52]} 18. axb5 {[%clk 0:00:41]}  Ra4 {[%clk 0:00:52]} 19. Qc2 {[%clk 0:00:35]}  Qb7 {[%clk 0:00:33]} 20. Bd2 {[%clk 0:00:33]}  Rfa8 {[%clk 0:00:29]} 21. g3 {[%clk 0:00:23]}  Bd4 {[%clk 0:00:12]} 22. Kg2 {[%clk 0:00:22]}  R8a7 {[%clk 0:00:10]} 23. h4 {[%clk 0:00:21]}  Nca8 {[%clk 0:00:07]} 24. h5 {[%clk 0:00:20]}  Nxc4 {[%clk 0:00:08]} 25. Bxc4 {[%clk 0:00:19]}  Nb6 {[%clk 0:00:08]} 26. Be2 {[%clk 0:00:18]}  Qd7 {[%clk 0:00:07]} 27. hxg6 {[%clk 0:00:18]}  hxg6 {[%clk 0:00:07]} 28. Rh1 {[%clk 0:00:17]}  c4 {[%clk 0:00:08]} 29. Rf3 {[%clk 0:00:16]}  Be5 {[%clk 0:00:02]} 30. Bc3 {[%clk 0:00:16]}  Qxb5 {[%clk 0:00:02]} 31. Bxe5 {[%clk 0:00:15]}  dxe5 {[%clk 0:00:03]} 32. Qc3 {[%clk 0:00:15]}  Nd7 {[%clk 0:00:03]} 33. Qe3 {[%clk 0:00:15]}  Kf8 {[%clk 0:00:01]} 34. Qh6+ {[%clk 0:00:15]}  Ke8 {[%clk 0:00:01]} 35. Qg7 {[%clk 0:00:16]}  Kd8 {[%clk 0:00:01]} 36. Qxf7 {[%clk 0:00:17]}  Kc7 {[%clk 0:00:02]} 37. Qxe7 {[%clk 0:00:16]}  Qc5 {[%clk 0:00:02]} 38. Qg7 {[%clk 0:00:15]}  Ra3 {[%clk 0:00:01]} 39. bxa3 {[%clk 0:00:14]} 1-0


[Site "https://www.chess.com"]

[Event "Titled Tuesday Blitz May 2 Late 2023"]
[White "Korchmar, Vasiliy"]
[Black "Hoffmann, Asa"]
[WhiteFideId "24131750"]
[BlackFideId "2001470"]
[WhiteElo "2370"]
[BlackElo "2117"]
[Result "1-0"]
[Round "02"]
[TimeControl "180+2"]
[Date "2023.05.02"]
[WhiteClock "0:01:29"]
[BlackClock "0:01:21"]

1. e4 {[%clk 0:02:56]}  d6 {[%clk 0:02:59]} 2. d4 {[%clk 0:02:56]}  Nf6 {[%clk 0:02:59]} 3. Nc3 {[%clk 0:02:56]}  c6 {[%clk 0:02:58]} 4. g3 {[%clk 0:02:52]}  Nbd7 {[%clk 0:02:56]} 5. Bg2 {[%clk 0:02:53]}  e5 {[%clk 0:02:56]} 6. Nge2 {[%clk 0:02:53]}  Be7 {[%clk 0:02:56]} 7. O-O {[%clk 0:02:53]}  b5 {[%clk 0:02:56]} 8. a3 {[%clk 0:02:53]}  a6 {[%clk 0:02:56]} 9. h3 {[%clk 0:02:50]}  Bb7 {[%clk 0:02:54]} 10. Be3 {[%clk 0:02:47]}  O-O {[%clk 0:02:53]} 11. g4 {[%clk 0:02:47]}  Qc7 {[%clk 0:02:52]} 12. Ng3 {[%clk 0:02:46]}  g6 {[%clk 0:02:50]} 13. g5 {[%clk 0:02:40]}  Ne8 {[%clk 0:02:49]} 14. f4 {[%clk 0:02:40]}  exf4 {[%clk 0:02:45]} 15. Bxf4 {[%clk 0:02:41]}  Ng7 {[%clk 0:02:41]} 16. h4 {[%clk 0:02:35]}  Ne6 {[%clk 0:02:39]} 17. Be3 {[%clk 0:02:34]}  Ng7 {[%clk 0:02:19]} 18. h5 {[%clk 0:02:32]}  Ne6 {[%clk 0:02:13]} 19. Qg4 {[%clk 0:02:30]}  Bc8 {[%clk 0:02:10]} 20. hxg6 {[%clk 0:02:22]}  hxg6 {[%clk 0:02:10]} 21. Nf5 {[%clk 0:01:54]}  Nb6 {[%clk 0:02:04]} 22. Qh4 {[%clk 0:01:40]}  Nc4 {[%clk 0:01:56]} 23. Rf3 {[%clk 0:01:32]}  Nxg5 {[%clk 0:01:31]} 24. Nxe7+ {[%clk 0:01:29]}  Qxe7 {[%clk 0:01:30]} 25. Bxg5 {[%clk 0:01:30]}  Qe6 {[%clk 0:01:21]} 26. Bf6 {[%clk 0:01:29]} 1-0


[Site "https://www.chess.com"]